bitfinex/quotes_SOLUSD_20240705
["timestamp","ask_amount","ask_price","bid_price","bid_amount"]
[1720174207255,5.37546008,126.83,126.78,100.0]
[1720174207561,23.30236441,126.84,126.76,100.0]
[1720174207874,7.8865,126.8,126.72,100.0]
[1720174208241,7.8871,126.79,126.72,100.0]
[1720174208563,19.7121,126.83,126.74,100.0]
[1720174208866,7.886,126.81,126.74,100.0]
[1720174209046,27.8865,126.8,126.72,100.0]
[1720174209248,7.886,126.81,126.74,100.0]
[1720174209467,20.0,126.8,126.74,100.0]
[1720174210155,20.0,126.81,126.74,100.0]
[1720174210770,7.8863,126.81,126.74,100.0]
[1720174210958,20.0,126.8,126.74,100.0]
[1720174211661,20.0,126.81,126.72,100.0]
[1720174211862,7.8881,126.78,126.7,100.0]
[1720174212065,20.0,126.77,126.73,100.0]
[1720174212669,43.82,126.81,126.71,100.0]
[1720174212854,8.0568,126.8,126.73,100.0]
[1720174213051,20.0,126.79,126.73,100.0]
[1720174213362,8.3382372,126.82,126.75,100.0]
[1720174213660,8.3382372,126.82,126.68,9.1296]
[1720174213661,0.17,126.81,126.72,100.0]
[1720174213863,7.8868,126.8,126.72,100.0]
[1720174214048,8.0571,126.79,126.72,100.0]
[1720174214364,8.0571,126.79,126.68,132.9496]
[1720174214365,7.8877,126.78,126.7,100.0]
[1720174214567,20.0,126.77,126.72,100.0]
[1720174214768,20.0,126.78,126.72,100.0]
[1720174215066,20.0,126.79,126.73,100.0]
[1720174216467,20.0,126.79,126.75,100.0]
[1720174216644,20.0,126.8,126.75,100.0]
[1720174216846,28.0562,126.81,126.75,100.0]
[1720174217175,20.0,126.81,126.75,100.0]
[1720174217864,20.0,126.81,126.73,100.0]
[1720174218164,16.2245372,126.81,126.73,100.0]
[1720174218373,20.0,126.8,126.73,100.0]
[1720174218663,8.3382372,126.81,126.75,100.0]
[1720174218865,14.96412721,126.84,126.79,100.0]
[1720174219169,14.96412721,126.84,126.74,124.7883]
[1720174219170,14.96412721,126.84,126.77,100.0]
[1720174219668,5.32892721,126.84,126.77,109.7115]
[1720174219867,7.8839,126.84,126.77,109.7115]
[1720174220069,7.8848,126.83,126.77,109.7115]
[1720174220246,13.50639911,126.85,126.77,109.7115]
[1720174220869,13.50639911,126.85,126.79,100.0]
[1720174221171,8.3382372,126.85,126.79,100.0]
[1720174221348,18.5462985,126.88,126.79,100.0]
[1720174221665,11.29989844,126.88,126.79,100.0]
[1720174221977,26.8844357,126.88,126.81,100.0]
[1720174222469,7.8821,126.87,126.81,100.0]
[1720174222666,32.14447758,126.88,126.81,100.0]
[1720174222979,19.0029357,126.88,126.83,100.0]
[1720174223145,26.8844357,126.88,126.81,100.0]
[1720174223344,19.0029357,126.88,126.83,100.0]
[1720174223547,26.8843357,126.88,126.83,100.0]
[1720174223974,27.8822,126.87,126.8,100.0]
[1720174224870,20.0,126.87,126.8,100.0]
[1720174225248,0.8688985,126.88,126.84,100.0]
[1720174225762,0.8688985,126.88,126.81,22.9965]
[1720174225763,0.8688985,126.88,126.86,100.0]
[1720174227287,24.7777,126.98,126.91,100.0]
[1720174227453,7.8753,126.98,126.89,100.0]
[1720174227643,38.02388384,126.99,126.91,100.0]
[1720174228074,7.8765,126.96,126.89,100.0]
[1720174228343,38.02388384,126.99,126.91,100.0]
[1720174228583,7.8753,126.98,126.91,100.0]
[1720174228972,38.02388384,126.99,126.91,100.0]
[1720174229174,38.02388384,126.99,126.87,23.3434]
[1720174229175,40.55780386,126.99,126.93,100.0]
[1720174229683,7.90490386,126.99,126.93,100.0]
[1720174229868,15.77970386,126.99,126.91,100.0]
[1720174230182,7.90490386,126.99,126.93,100.0]
[1720174230374,15.77970386,126.99,126.93,100.0]
[1720174230581,5.6688985,127.0,126.93,100.0]
[1720174230785,39.9396,126.96,126.8,109.88]
[1720174230966,19.695,126.94,126.81,100.0]
[1720174231163,23.82,126.94,126.8,9.88]
[1720174231428,16.1196,126.96,126.79,23.4509]
[1720174231429,7.8832,126.86,126.79,23.4509]
[1720174231701,20.0,126.85,126.79,23.4509]
[1720174231861,20.0,126.87,126.78,100.0]
[1720174232065,21.06853328,126.87,126.8,100.0]
[1720174232385,20.0,126.87,126.85,100.0]
[1720174232566,20.0,126.92,126.85,100.0]
[1720174232770,27.8784,126.93,126.85,100.0]
[1720174232981,20.0,126.93,126.85,100.0]
[1720174233179,20.0,126.93,126.85,200.0]
[1720174233495,11.10719562,126.97,126.91,100.0]
[1720174233653,11.10719562,126.97,126.88,123.82]
[1720174233654,7.8772,126.95,126.88,100.0]
[1720174233861,7.8765,126.96,126.88,100.0]
[1720174234087,18.98319562,126.97,126.88,200.0]
[1720174234292,7.8766,126.96,126.88,100.0]
[1720174234462,7.8772,126.95,126.88,100.0]
[1720174234655,11.10719562,126.97,126.88,100.0]
[1720174234656,7.8779,126.94,126.88,100.0]
[1720174234901,11.10719562,126.97,126.85,100.0]
[1720174235195,7.8777,126.94,126.88,100.0]
[1720174235357,20.0,126.93,126.88,100.0]
[1720174235558,20.0,126.95,126.88,100.0]
[1720174235792,27.8772,126.95,126.88,100.0]
[1720174235992,7.8778,126.94,126.86,100.0]
[1720174236176,20.0,126.93,126.88,100.0]
[1720174236371,20.0,126.93,126.9,100.0]
[1720174236578,20.0,126.93,126.91,1.28305432]
[1720174236903,20.2125305,126.97,126.93,100.0]
[1720174237272,0.2125305,126.97,126.93,100.0]
[1720174237690,0.2125305,126.97,126.93,109.7771]
[1720174238286,0.2125305,126.97,126.93,100.0]
[1720174239375,0.2125305,126.97,126.96,200.0]
[1720174239584,0.2125305,126.97,126.94,123.5787]
[1720174239800,0.2125305,126.97,126.94,23.5787]
[1720174240110,0.2125305,126.97,126.94,100.0]
[1720174241679,0.2125305,126.97,126.96,100.0]
[1720174243006,0.2125305,126.97,126.96,123.82]
[1720174243606,0.2125305,126.97,126.96,100.0]
[1720174246520,0.2125305,126.97,126.91,100.0]
[1720174246825,0.2125305,126.97,126.96,100.0]
[1720174247521,0.2125305,126.97,126.94,100.0]
[1720174247815,0.2125305,126.97,126.92,100.0]
[1720174248021,0.2125305,126.97,126.9,100.0]
[1720174248195,20.2125305,126.97,126.93,100.0]
[1720174248526,20.0,126.96,126.93,100.0]
[1720174248695,0.2125305,126.97,126.93,100.0]
[1720174250099,0.2125305,126.97,126.9,200.0]
[1720174250396,0.2125305,126.97,126.9,100.0]
[1720174251102,7.8765,126.96,126.9,100.0]
[1720174251306,20.0,126.95,126.9,100.0]
[1720174252529,27.8765,126.96,126.9,100.0]
[1720174252822,27.8765,126.96,126.86,100.0]
[1720174252823,20.0,126.96,126.86,100.0]
[1720174253028,0.17,126.95,126.87,100.0]
[1720174253223,29.92379492,126.97,126.82,100.0]
[1720174253224,23.771,126.93,126.82,100.0]
[1720174253397,23.771,126.93,126.81,100.0]
[1720174253398,0.17,126.92,126.81,100.0]
[1720174253602,7.8804,126.9,126.81,100.0]
[1720174253827,20.0,126.89,126.8,100.0]
[1720174254008,7.8804,126.9,126.81,100.0]
[1720174254212,20.0,126.89,126.82,1.57649049]
[1720174254409,20.0,126.89,126.81,100.0]
[1720174254811,20.0,126.89,126.77,5.47240924]
[1720174254812,0.2125305,126.97,126.93,100.0]
[1720174255113,0.2125305,126.97,126.88,100.0]
[1720174255330,0.2125305,126.97,126.82,58.56156656]
[1720174255331,7.8765,126.96,126.86,200.0]
[1720174255506,0.2125305,126.97,126.86,200.0]
[1720174255836,0.2125305,126.97,126.89,100.0]
[1720174256202,0.2125305,126.97,126.93,100.0]
[1720174257229,0.2125305,126.97,126.96,100.0]
[1720174257805,23.82,127.08,126.96,100.0]
[1720174257806,20.0,127.09,127.04,100.0]
[1720174258006,5.42890885,127.15,127.04,100.0]
[1720174258205,22.5881,127.2,127.03,100.0]
[1720174258206,23.82,127.18,127.07,100.0]
[1720174258432,23.82,127.15,127.04,100.0]
[1720174258629,7.8654,127.14,127.04,100.0]
[1720174259131,8.7351985,127.13,127.04,100.0]
[1720174259439,0.8688985,127.13,127.04,100.0]
[1720174259729,7.91339817,127.12,127.02,100.0]
[1720174259910,20.0,127.11,127.02,100.0]
[1720174260114,0.04679817,127.12,127.02,100.0]
[1720174260716,0.04679817,127.12,127.04,100.0]
[1720174260921,7.91339817,127.12,127.02,100.0]
[1720174261431,23.86679817,127.12,127.02,100.0]
[1720174261610,20.0,127.11,126.99,100.0]
[1720174261809,27.8677,127.11,126.99,100.0]
[1720174262124,2.5791747,127.1,127.03,100.0]
[1720174263309,2.5791747,127.1,127.05,100.0]
[1720174263721,7.91339817,127.12,127.05,100.0]
[1720174263929,0.04679817,127.12,127.02,100.0]
[1720174264112,0.04679817,127.12,127.04,100.0]
[1720174264709,0.04679817,127.12,127.02,100.0]
[1720174265432,0.04679817,127.12,127.04,100.0]
[1720174265934,0.04679817,127.12,127.08,100.0]
[1720174266116,0.04679817,127.12,127.1,100.0]
[1720174268144,0.04679817,127.12,127.11,100.0]
[1720174268458,0.2125305,127.22,127.14,100.0]
[1720174269913,0.2125305,127.22,127.11,100.0]
[1720174269914,8.0729305,127.22,127.12,100.0]
[1720174270115,7.864,127.17,127.07,100.0]
[1720174270339,23.82,127.19,127.04,100.0]
[1720174270534,7.8645,127.16,127.04,100.0]
[1720174270710,7.866,127.13,127.04,100.0]
[1720174270911,7.866,127.13,127.01,100.0]
[1720174270912,7.866,127.13,127.02,100.0]
[1720174271152,19.6561,127.19,127.04,100.0]
[1720174271153,7.8642,127.16,127.04,100.0]
[1720174271353,43.4761,127.19,127.04,100.0]
[1720174271354,20.17,127.15,127.04,100.0]
[1720174271528,22.88125397,127.21,127.08,200.0]
[1720174271727,8.0321,127.2,127.08,200.0]
[1720174272025,27.8624,127.19,127.08,200.0]
[1720174272222,20.0,127.19,127.12,200.0]
[1720174272447,0.2125305,127.22,127.14,100.0]
[1720174272831,0.2125305,127.22,127.1,100.0]
[1720174273043,8.0730305,127.22,127.1,100.0]
[1720174273238,0.2125305,127.22,127.1,100.0]
[1720174273445,0.2125305,127.22,127.16,100.0]
[1720174273841,0.2125305,127.22,127.13,100.0]
[1720174273842,0.8688985,127.39,127.19,200.0]
[1720174274076,0.8688985,127.39,127.21,200.0]
[1720174274542,0.8688985,127.39,127.25,100.0]
[1720174274827,24.7015,127.37,127.25,100.0]
[1720174275020,24.7015,127.37,127.19,100.0]
[1720174275251,26.50012713,127.37,127.19,100.0]
[1720174275453,24.7015,127.37,127.23,100.0]
[1720174275629,32.5531,127.37,127.23,100.0]
[1720174275827,7.8522,127.36,127.23,100.0]
[1720174276144,45.69786332,127.37,127.19,100.0]
[1720174276334,15.0,127.32,127.13,100.0]
[1720174276529,9.4022,127.29,127.11,122.7132]
[1720174276866,20.0,127.28,127.17,100.0]
[1720174277237,20.0,127.28,127.13,100.0]
[1720174277441,0.17,127.27,127.15,100.0]
[1720174277743,9.4022,127.29,127.19,100.0]
[1720174278047,9.4022,127.29,127.21,100.0]
[1720174278228,7.8528,127.35,127.23,100.0]
[1720174278429,47.9709,127.36,127.19,100.0]
[1720174278627,15.0,127.34,127.16,200.0]
[1720174278828,7.8563,127.29,127.18,100.0]
[1720174279038,7.8552,127.31,127.18,100.0]
[1720174279235,17.36918269,127.35,127.2,100.0]
[1720174279440,0.7062609,127.37,127.26,100.0]
[1720174279775,0.7062609,127.37,127.28,100.0]
[1720174279931,0.7062609,127.37,127.3,200.0]
[1720174280119,0.7062609,127.37,127.3,100.0]
[1720174280327,0.7062609,127.37,127.31,100.0]
[1720174281166,0.7062609,127.37,127.26,200.0]
[1720174281340,0.7062609,127.37,127.28,100.0]
[1720174281535,0.7062609,127.37,127.3,100.0]
[1720174281735,0.7062609,127.37,127.28,100.0]
[1720174281934,0.7062609,127.37,127.34,100.0]
[1720174282133,0.7062609,127.37,127.31,100.0]
[1720174282858,0.7062609,127.37,127.33,100.0]
[1720174283154,0.7062609,127.37,127.31,100.0]
[1720174283951,7.8517,127.36,127.22,200.0]
[1720174284133,0.7062609,127.37,127.22,200.0]
[1720174284134,0.17,127.35,127.22,200.0]
[1720174284331,7.853,127.34,127.23,100.0]
[1720174284753,0.17,127.33,127.23,100.0]
[1720174285054,7.8538,127.33,127.23,100.0]
[1720174285253,7.8536,127.33,127.2,200.0]
[1720174285427,0.7062609,127.37,127.26,100.0]
[1720174285632,0.7062609,127.37,127.28,100.0]
[1720174285970,0.7062609,127.37,127.3,123.61]
[1720174286160,0.7062609,127.37,127.3,100.0]
[1720174286836,0.7062609,127.37,127.26,100.0]
[1720174289175,0.7062609,127.37,127.32,30.0]
[1720174291452,0.7062609,127.37,127.32,130.0]
[1720174292849,0.7062609,127.37,127.32,30.0]
[1720174293663,0.7062609,127.37,127.27,100.0]
[1720174293962,0.7062609,127.37,127.28,100.0]
[1720174294262,0.7062609,127.37,127.3,100.0]
[1720174294474,0.7062609,127.37,127.33,100.0]
[1720174294974,0.7062609,127.37,127.35,223.61]
[1720174295349,0.7062609,127.37,127.36,100.0]
[1720174295863,0.7062609,127.37,127.36,130.0]
[1720174296064,0.7062609,127.37,127.36,153.61]
[1720174296365,65.80516842,127.38,127.37,123.61]
[1720174296599,65.80516842,127.38,127.37,143.78]
[1720174296787,65.80516842,127.38,127.37,143.61]
[1720174296939,65.80516842,127.38,127.37,173.61]
[1720174297569,15.75496842,127.38,127.37,173.61]
[1720174297769,15.75496842,127.38,127.37,273.78]
[1720174297949,15.75496842,127.38,127.37,173.78]
[1720174298150,15.75496842,127.38,127.37,273.78]
[1720174298650,0.2125305,127.48,127.42,100.0]
[1720174298904,0.2125305,127.48,127.42,30.0]
[1720174299946,0.2125305,127.48,127.4,100.0]
[1720174300278,0.2125305,127.48,127.37,100.0]
[1720174300650,0.2125305,127.48,127.4,100.0]
[1720174301053,0.2125305,127.48,127.41,100.0]
[1720174301370,0.2125305,127.48,127.4,100.0]
[1720174301590,0.2125305,127.48,127.45,100.0]
[1720174301746,0.2125305,127.48,127.42,200.0]
[1720174301964,0.2125305,127.48,127.44,100.0]
[1720174302969,0.2125305,127.48,127.46,100.0]
[1720174303168,0.2125305,127.48,127.47,100.0]
[1720174303383,0.2125305,127.48,127.45,200.0]
[1720174304985,0.2125305,127.48,127.47,100.0]
[1720174305995,0.2125305,127.48,127.47,223.61]
[1720174306485,0.2125305,127.48,127.47,200.0]
[1720174306863,0.2125305,127.48,127.47,100.0]
[1720174307465,0.2125305,127.48,127.46,100.0]
[1720174307981,0.2125305,127.48,127.43,200.0]
[1720174308176,0.2125305,127.48,127.47,100.0]
[1720174308480,0.2125305,127.48,127.45,100.0]
[1720174308686,0.2125305,127.48,127.44,100.0]
[1720174308981,0.2125305,127.48,127.42,100.0]
[1720174309284,0.2125305,127.48,127.38,15.16423815]
[1720174309285,0.2125305,127.48,127.4,100.0]
[1720174312300,7.8462,127.45,127.36,100.0]
[1720174312478,7.8475,127.43,127.34,100.0]
[1720174312789,0.17,127.42,127.32,100.0]
[1720174312989,0.17,127.44,127.32,100.0]
[1720174313486,7.8491,127.41,127.3,100.0]
[1720174313686,0.17,127.44,127.3,100.0]
[1720174313988,0.17,127.44,127.27,200.0]
[1720174313989,23.61,127.41,127.27,200.0]
[1720174314179,0.17,127.4,127.3,100.0]
[1720174314389,7.8518,127.36,127.25,100.0]
[1720174314650,7.8518,127.36,127.24,100.0]
[1720174314651,7.8524,127.35,127.24,100.0]
[1720174314794,23.7281,127.33,127.23,100.0]
[1720174314976,23.7281,127.33,127.22,100.0]
[1720174314977,41.3058,127.33,127.22,100.0]
[1720174315288,33.4522,127.33,127.21,100.0]
[1720174315481,33.4522,127.33,127.24,100.0]
[1720174315684,33.4522,127.33,127.23,100.0]
[1720174315886,33.4522,127.33,127.18,200.0]
[1720174315887,7.8542,127.32,127.18,200.0]
[1720174316079,0.17,127.31,127.21,100.0]
[1720174316267,0.17,127.32,127.24,100.0]
[1720174316468,0.17,127.32,127.2,200.0]
[1720174316701,23.7281,127.33,127.22,100.0]
[1720174316898,23.7281,127.33,127.24,100.0]
[1720174317104,23.7281,127.33,127.22,100.0]
[1720174317298,0.17,127.32,127.22,100.0]
[1720174317608,23.7281,127.33,127.22,100.0]
[1720174317809,23.7281,127.33,127.21,100.0]
[1720174317810,23.7281,127.33,127.25,100.0]
[1720174318412,23.7281,127.33,127.24,200.0]
[1720174318720,23.7281,127.33,127.28,100.0]
[1720174319022,23.6175,127.38,127.28,100.0]
[1720174319216,8.2101036,127.37,127.28,100.0]
[1720174319389,23.6175,127.38,127.28,200.0]
[1720174319693,23.6175,127.38,127.22,15.0]
[1720174319694,39.67754625,127.38,127.26,100.0]
[1720174319900,23.6175,127.38,127.29,100.0]
[1720174320288,31.82667101,127.38,127.28,100.0]
[1720174320485,23.6175,127.38,127.29,100.0]
[1720174320905,23.6175,127.38,127.34,100.0]
[1720174321109,23.6175,127.38,127.29,100.0]
[1720174321304,23.6175,127.38,127.32,100.0]
[1720174321513,23.6175,127.38,127.3,100.0]
[1720174322006,23.6175,127.38,127.3,200.0]
[1720174322191,31.4686,127.38,127.3,100.0]
[1720174322389,23.6175,127.38,127.32,100.0]
[1720174323003,23.6175,127.38,127.29,100.0]
[1720174323316,23.6175,127.38,127.26,109.6216]
[1720174323317,0.17,127.37,127.21,200.0]
[1720174323497,0.17,127.37,127.23,100.0]
[1720174323719,7.853,127.34,127.23,100.0]
[1720174323913,0.17,127.37,127.23,200.0]
[1720174324220,7.8534,127.34,127.22,100.0]
[1720174324392,7.8548,127.31,127.2,100.0]
[1720174324595,17.5,127.3,127.21,100.0]
[1720174324822,9.644,127.3,127.21,100.0]
[1720174325117,9.644,127.3,127.22,100.0]
[1720174325288,9.644,127.3,127.2,200.0]
[1720174325489,9.644,127.3,127.15,23.61]
[1720174325490,9.644,127.3,127.22,100.0]
[1720174325695,17.4996,127.3,127.19,100.0]
[1720174326012,17.4995,127.3,127.19,100.0]
[1720174326315,8.0266,127.29,127.18,100.0]
[1720174326511,7.857,127.28,127.18,100.0]
[1720174326733,0.17,127.29,127.18,100.0]
[1720174326909,7.8567,127.28,127.18,100.0]
[1720174327096,7.8573,127.27,127.19,0.41300866]
[1720174327297,9.644,127.3,127.2,0.61754768]
[1720174327509,9.644,127.3,127.19,200.0]
[1720174327716,17.4998,127.3,127.19,100.0]
[1720174328001,9.644,127.3,127.17,100.0]
[1720174328199,9.644,127.3,127.17,200.0]
[1720174328715,9.644,127.3,127.17,100.0]
[1720174328716,7.858,127.26,127.17,100.0]
[1720174329022,7.858,127.26,127.15,100.0]
[1720174329221,0.17,127.25,127.15,100.0]
[1720174329395,0.17,127.27,127.15,100.0]
[1720174329594,8.0274,127.27,127.15,200.0]
[1720174329839,0.17,127.27,127.17,100.0]
[1720174330021,0.17,127.27,127.17,200.0]
[1720174330200,20.0,127.29,127.17,200.0]
[1720174330201,8.0268,127.28,127.17,200.0]
[1720174330406,0.17,127.28,127.17,100.0]
[1720174330831,7.8579,127.26,127.16,100.0]
[1720174331036,7.8585,127.25,127.16,100.0]
[1720174331201,0.17,127.26,127.16,100.0]
[1720174331402,7.8584,127.26,127.16,100.0]
[1720174331612,8.21629202,127.26,127.16,100.0]
[1720174331825,24.8584,127.24,127.14,100.0]
[1720174332208,7.8611,127.21,127.12,200.0]
[1720174332528,24.8584,127.24,127.14,100.0]
[1720174332732,24.8584,127.24,127.14,200.0]
[1720174332963,24.8584,127.24,127.16,100.0]
[1720174333100,24.8584,127.24,127.13,200.0]
[1720174333302,0.17,127.23,127.13,100.0]
[1720174333524,8.0303,127.23,127.13,100.0]
[1720174333832,0.17,127.23,127.13,100.0]
[1720174334036,9.4884,127.22,127.09,200.0]
[1720174334332,0.17,127.21,127.09,100.0]
[1720174334649,20.17,127.21,127.07,200.0]
[1720174334830,7.863,127.18,127.07,200.0]
[1720174335129,7.8641,127.16,127.07,100.0]
[1720174335338,0.17,127.17,127.07,100.0]
[1720174335513,23.7053,127.16,127.07,100.0]
[1720174335931,23.7053,127.16,127.09,100.0]
[1720174336447,23.7053,127.16,127.09,0.5438193]
[1720174338024,23.7053,127.16,127.11,100.0]
[1720174338225,24.9159,127.21,127.13,100.0]
[1720174338446,24.9159,127.21,127.11,100.0]
[1720174338743,24.9159,127.21,127.13,100.0]
[1720174339330,32.777,127.21,127.13,100.0]
[1720174339546,7.8616,127.2,127.13,100.0]
[1720174339839,7.8617,127.2,127.09,100.5438193]
[1720174340053,24.9159,127.21,127.09,100.5438193]
[1720174340344,0.17,127.2,127.09,100.5438193]
[1720174340515,0.17,127.2,127.12,100.0]
[1720174340709,24.9159,127.21,127.13,100.0]
[1720174340919,22.30454616,127.21,127.18,100.0]
[1720174341121,10.1687,127.26,127.2,100.0]
[1720174341466,8.21518741,127.3,127.22,100.0]
[1720174341758,10.1687,127.33,127.24,100.0]
[1720174341937,10.1687,127.33,127.23,200.0]
[1720174341938,7.8547,127.32,127.23,200.0]
[1720174342124,10.1687,127.33,127.23,200.0]
[1720174342665,10.1687,127.33,127.28,100.0]
[1720174343025,10.1687,127.33,127.31,100.0]
[1720174343258,8.21021853,127.37,127.28,100.0]
[1720174343457,9.2921,127.39,127.31,100.0]
[1720174343622,25.35688,127.39,127.33,100.0]
[1720174343956,9.2921,127.39,127.35,100.0]
[1720174344142,24.3851,127.4,127.35,100.0]
[1720174344343,24.3851,127.4,127.33,123.61]
[1720174344544,24.3851,127.4,127.34,100.0]
[1720174344719,24.3851,127.4,127.33,200.0]
[1720174345154,24.3851,127.4,127.33,223.61]
[1720174345353,24.3851,127.4,127.28,100.0]
[1720174345524,7.8499,127.39,127.3,100.0]
[1720174345954,24.3851,127.4,127.28,100.0]
[1720174346133,47.9951,127.4,127.25,100.0]
[1720174346341,7.8516,127.37,127.25,100.0]
[1720174346523,8.0222,127.36,127.26,100.0]
[1720174346720,20.17,127.39,127.25,100.0]
[1720174346924,7.8518,127.36,127.26,100.0]
[1720174347164,7.8512,127.37,127.25,100.0]
[1720174347347,43.78,127.39,127.25,100.0]
[1720174347661,7.852,127.36,127.27,100.0]
[1720174348176,32.2349,127.4,127.28,200.0]
[1720174348483,20.0,127.39,127.26,100.0]
[1720174348772,0.17,127.38,127.27,100.0]
[1720174348977,0.17,127.38,127.29,100.0]
[1720174349149,20.0,127.39,127.3,1.57047231]
[1720174349354,20.0,127.39,127.29,100.0]
[1720174349558,20.0,127.39,127.28,100.0]
[1720174349559,7.8505,127.38,127.28,100.0]
[1720174349780,7.8505,127.38,127.27,123.61]
[1720174349970,7.8505,127.38,127.28,100.0]
[1720174350172,7.85,127.39,127.28,100.0]
[1720174350484,7.85,127.39,127.29,1.17667284]
[1720174350674,7.8505,127.38,127.29,1.17667284]
[1720174350859,7.8526,127.35,127.27,100.0]
[1720174351069,24.5551,127.4,127.3,100.0]
[1720174351259,20.0,127.39,127.3,100.0]
[1720174351575,24.3851,127.4,127.31,100.0]
[1720174352950,24.3851,127.4,127.3,100.0]
[1720174352951,32.2349,127.4,127.3,100.0]
[1720174353145,24.3851,127.4,127.33,100.0]
[1720174353381,24.3851,127.4,127.31,100.0]
[1720174353681,24.3851,127.4,127.32,100.0]
[1720174354102,32.2346,127.4,127.32,100.0]
[1720174354382,24.3851,127.4,127.34,100.0]
[1720174354578,24.3851,127.4,127.32,100.0]
[1720174354779,24.3851,127.4,127.3,100.0]
[1720174354967,24.3851,127.4,127.33,100.0]
[1720174355146,0.3202465,127.41,127.37,100.0]
[1720174355355,0.3202465,127.41,127.38,100.0]
[1720174355584,0.3202465,127.41,127.4,100.0]
[1720174355779,0.3202465,127.41,127.4,200.0]
[1720174356390,0.3202465,127.41,127.4,220.17]
[1720174356555,25.0912305,127.48,127.44,200.0]
[1720174357071,0.2125305,127.48,127.44,200.0]
[1720174357283,0.2125305,127.48,127.44,100.0]
[1720174357472,0.2125305,127.48,127.45,100.0]
[1720174358376,0.2125305,127.48,127.46,1.56853675]
[1720174358684,0.2125305,127.48,127.47,100.0]
[1720174358884,0.2125305,127.48,127.47,101.56830968]
[1720174359085,0.2125305,127.48,127.47,120.0]
[1720174359780,0.2125305,127.48,127.47,100.0]
[1720174360375,0.2125305,127.48,127.43,100.0]
[1720174360782,0.2125305,127.48,127.47,200.0]
[1720174361679,0.2125305,127.48,127.47,220.17]
[1720174362565,0.2125305,127.48,127.47,200.17]
[1720174362876,0.2125305,127.48,127.47,220.17]
[1720174365180,0.2125305,127.48,127.47,243.78]
[1720174367085,0.2125305,127.48,127.47,200.0]
[1720174367260,0.2125305,127.48,127.47,223.61]
[1720174367456,0.2125305,127.48,127.47,200.0]
[1720174367968,0.046658,127.5,127.47,223.61]
[1720174368388,0.046658,127.5,127.47,200.0]
[1720174369078,0.046658,127.5,127.48,23.61]
[1720174369275,0.8640658,127.53,127.52,100.0]
[1720174369577,0.8640658,127.53,127.5,100.0]
[1720174369762,0.8640658,127.53,127.51,30.0]
[1720174370086,0.8640658,127.53,127.52,200.0]
[1720174370982,24.7695,127.59,127.52,200.0]
[1720174370983,0.1,127.59,127.56,100.0]
[1720174371159,0.1,127.59,127.54,100.0]
[1720174371599,0.1,127.59,127.56,100.0]
[1720174371765,0.1,127.59,127.56,30.0]